[Event "Titled Tuesday Blitz March 15 Late 2022"]
[White "Perez Torres, Nabi Isaias"]
[Black "Svicevic, Rastko"]
[WhiteFideId "5120373"]
[BlackFideId "916315"]
[WhiteElo "1755"]
[BlackElo "2132"]
[Result "0-1"]
[Round "07"]
[TimeControl "180+1"]
[Date "2022.03.16"]
[WhiteClock "0:00:01"]
[BlackClock "0:00:01"]

1. d4 {[%clk 0:02:59]}  c6 {[%clk 0:03:00]} 2. c4 {[%clk 0:02:59]}  d5 {[%clk 0:03:01]} 3. Nc3 {[%clk 0:02:59]}  e6 {[%clk 0:03:02]} 4. e4 {[%clk 0:02:59]}  dxe4 {[%clk 0:03:01]} 5. Nxe4 {[%clk 0:03:00]}  Bb4+ {[%clk 0:03:01]} 6. Nc3 {[%clk 0:02:59]}  Nf6 {[%clk 0:02:57]} 7. Nf3 {[%clk 0:02:59]}  Ne4 {[%clk 0:02:54]} 8. Qc2 {[%clk 0:02:57]}  Nxc3 {[%clk 0:02:46]} 9. bxc3 {[%clk 0:02:58]}  Be7 {[%clk 0:02:43]} 10. Bd3 {[%clk 0:02:57]}  h6 {[%clk 0:02:41]} 11. Bf4 {[%clk 0:02:39]}  Nd7 {[%clk 0:02:38]} 12. h4 {[%clk 0:02:32]}  Qa5 {[%clk 0:02:37]} 13. Rh3 {[%clk 0:02:09]}  Nf6 {[%clk 0:02:30]} 14. Ne5 {[%clk 0:02:07]}  O-O {[%clk 0:02:09]} 15. g4 {[%clk 0:01:57]}  h5 {[%clk 0:01:44]} 16. gxh5 {[%clk 0:01:26]}  Nxh5 {[%clk 0:01:40]} 17. Bg5 {[%clk 0:01:26]}  Bf6 {[%clk 0:01:23]} 18. f4 {[%clk 0:01:12]}  b5 {[%clk 0:01:05]} 19. Nxc6 {[%clk 0:01:08]}  Qc7 {[%clk 0:01:03]} 20. Ne5 {[%clk 0:01:03]}  bxc4 {[%clk 0:00:59]} 21. Bh7+ {[%clk 0:00:58]}  Kh8 {[%clk 0:00:59]} 22. Bg6 {[%clk 0:00:55]}  fxg6 {[%clk 0:00:36]} 23. Qxg6 {[%clk 0:00:44]}  Bxe5 {[%clk 0:00:22]} 24. Qxh5+ {[%clk 0:00:44]}  Kg8 {[%clk 0:00:23]} 25. fxe5 {[%clk 0:00:41]}  Bb7 {[%clk 0:00:14]} 26. Rg3 {[%clk 0:00:30]}  Rf7 {[%clk 0:00:08]} 27. Bf6 {[%clk 0:00:28]}  Rxf6 {[%clk 0:00:08]} 28. Qg5 {[%clk 0:00:21]}  Rf7 {[%clk 0:00:06]} 29. h5 {[%clk 0:00:22]}  Kh8 {[%clk 0:00:05]} 30. h6 {[%clk 0:00:20]}  g6 {[%clk 0:00:04]} 31. Qxg6 {[%clk 0:00:17]}  Raf8 {[%clk 0:00:04]} 32. O-O-O {[%clk 0:00:17]}  Qa5 {[%clk 0:00:03]} 33. Rdg1 {[%clk 0:00:14]}  Qa3+ {[%clk 0:00:03]} 34. Kd2 {[%clk 0:00:07]}  Qb2+ {[%clk 0:00:02]} 35. Ke1 {[%clk 0:00:02]}  Qc1+ {[%clk 0:00:02]} 36. Ke2 {[%clk 0:00:02]}  Qb2+ {[%clk 0:00:01]} 37. Ke1 {[%clk 0:00:02]}  Qc1+ {[%clk 0:00:01]} 38. Ke2 {[%clk 0:00:02]}  Bf3+ {[%clk 0:00:01]} 39. Rxf3 {[%clk 0:00:01]}  Qc2+ {[%clk 0:00:01]} 0-1


[Site "https://www.chess.com"]

[Event "Titled Tuesday Blitz March 15 Late 2022"]
[White "Petre, Nad-Titus"]
[Black "Zaksaite, Salomeja"]
[WhiteFideId "1204165"]
[BlackFideId "12801496"]
[WhiteElo "2354"]
[BlackElo "1953"]
[Result "0-1"]
[Round "07"]
[TimeControl "180+1"]
[Date "2022.03.16"]
[WhiteClock "0:00:32"]
[BlackClock "0:01:19"]

1. Nf3 {[%clk 0:02:53]}  Nf6 {[%clk 0:02:59]} 2. c4 {[%clk 0:02:52]}  g6 {[%clk 0:02:58]} 3. d4 {[%clk 0:02:51]}  Bg7 {[%clk 0:02:57]} 4. Nc3 {[%clk 0:02:52]}  d5 {[%clk 0:02:57]} 5. Bf4 {[%clk 0:02:46]}  O-O {[%clk 0:02:54]} 6. e3 {[%clk 0:02:45]}  c5 {[%clk 0:02:54]} 7. dxc5 {[%clk 0:02:41]}  Qa5 {[%clk 0:02:49]} 8. Rc1 {[%clk 0:02:30]}  dxc4 {[%clk 0:02:44]} 9. Be5 {[%clk 0:02:30]}  Qxc5 {[%clk 0:02:42]} 10. Qa4 {[%clk 0:02:24]}  Bd7 {[%clk 0:02:26]} 11. Qxc4 {[%clk 0:02:20]}  Qxc4 {[%clk 0:02:26]} 12. Bxc4 {[%clk 0:02:21]}  Nc6 {[%clk 0:02:26]} 13. Bxf6 {[%clk 0:02:00]}  Bxf6 {[%clk 0:02:25]} 14. h3 {[%clk 0:02:01]}  Rac8 {[%clk 0:02:23]} 15. Bb5 {[%clk 0:01:54]}  a6 {[%clk 0:02:11]} 16. Ba4 {[%clk 0:01:43]}  b5 {[%clk 0:01:50]} 17. Bb3 {[%clk 0:01:38]}  Na5 {[%clk 0:01:49]} 18. Ke2 {[%clk 0:01:30]}  Nxb3 {[%clk 0:01:43]} 19. axb3 {[%clk 0:01:31]}  b4 {[%clk 0:01:43]} 20. Nd5 {[%clk 0:01:22]}  Bb5+ {[%clk 0:01:38]} 21. Kd2 {[%clk 0:01:18]}  Rcd8 {[%clk 0:01:33]} 22. e4 {[%clk 0:00:47]}  e6 {[%clk 0:01:32]} 23. Ke3 {[%clk 0:00:37]}  exd5 {[%clk 0:01:27]} 24. e5 {[%clk 0:00:38]}  Bg7 {[%clk 0:01:20]} 25. Rhd1 {[%clk 0:00:32]}  Bh6+ {[%clk 0:01:19]} 0-1


[Site "https://www.chess.com"]

[Event "Titled Tuesday Blitz March 15 Late 2022"]
[White "Pichot, Alan"]
[Black "Martinez Alcantara, Jose Eduardo"]
[WhiteFideId "110973"]
[BlackFideId "3805662"]
[WhiteElo "2871"]
[BlackElo "2924"]
[Result "1-0"]
[Round "07"]
[TimeControl "180+1"]
[Date "2022.03.15"]
[WhiteClock "0:00:51"]
[BlackClock "0:00:03"]

1. e4 {[%clk 0:03:00]}  Nc6 {[%clk 0:02:47]} 2. Nf3 {[%clk 0:02:58]}  e5 {[%clk 0:02:47]} 3. Bb5 {[%clk 0:02:57]}  a6 {[%clk 0:02:47]} 4. Ba4 {[%clk 0:02:57]}  Bc5 {[%clk 0:02:47]} 5. O-O {[%clk 0:02:53]}  Nge7 {[%clk 0:02:44]} 6. c3 {[%clk 0:02:53]}  Ng6 {[%clk 0:02:38]} 7. d4 {[%clk 0:02:54]}  Ba7 {[%clk 0:02:38]} 8. Bg5 {[%clk 0:02:54]}  f6 {[%clk 0:02:38]} 9. Be3 {[%clk 0:02:54]}  O-O {[%clk 0:02:37]} 10. Nbd2 {[%clk 0:02:51]}  d6 {[%clk 0:02:35]} 11. h3 {[%clk 0:02:51]}  Qe7 {[%clk 0:02:30]} 12. Re1 {[%clk 0:02:50]}  Kh8 {[%clk 0:02:26]} 13. Bc2 {[%clk 0:02:45]}  Nd8 {[%clk 0:02:22]} 14. Nf1 {[%clk 0:02:29]}  Ne6 {[%clk 0:02:22]} 15. Ng3 {[%clk 0:02:29]}  Nef4 {[%clk 0:02:22]} 16. Qd2 {[%clk 0:02:22]}  Be6 {[%clk 0:02:10]} 17. Nf5 {[%clk 0:02:14]}  Qe8 {[%clk 0:01:44]} 18. g3 {[%clk 0:02:13]}  Nxh3+ {[%clk 0:01:35]} 19. Kg2 {[%clk 0:02:13]}  Ng5 {[%clk 0:01:35]} 20. Bxg5 {[%clk 0:02:11]}  fxg5 {[%clk 0:01:36]} 21. Nxg5 {[%clk 0:02:12]}  Bg8 {[%clk 0:01:26]} 22. Rh1 {[%clk 0:02:09]}  Rf6 {[%clk 0:01:18]} 23. Rh3 {[%clk 0:01:36]}  Nf8 {[%clk 0:01:18]} 24. Rah1 {[%clk 0:01:36]}  Rd8 {[%clk 0:01:10]} 25. Nf3 {[%clk 0:01:18]}  d5 {[%clk 0:00:46]} 26. Nxe5 {[%clk 0:01:11]}  dxe4 {[%clk 0:00:43]} 27. Qg5 {[%clk 0:01:10]}  Ne6 {[%clk 0:00:20]} 28. Qg4 {[%clk 0:01:09]}  g6 {[%clk 0:00:09]} 29. Nh6 {[%clk 0:01:05]}  Nxd4 {[%clk 0:00:10]} 30. Nxg8 {[%clk 0:01:02]}  Kxg8 {[%clk 0:00:07]} 31. Rxh7 {[%clk 0:00:57]}  Rxf2+ {[%clk 0:00:02]} 32. Kxf2 {[%clk 0:00:56]}  Nf5+ {[%clk 0:00:02]} 33. Ke1 {[%clk 0:00:52]}  Qxe5 {[%clk 0:00:03]} 34. Qxg6+ {[%clk 0:00:51]} 1-0


[Site "https://www.chess.com"]

[Event "Titled Tuesday Blitz March 15 Late 2022"]
[White "Quesada Perez, Yuniesky"]
[Black "Niemann, Hans Moke"]
[WhiteFideId "3504409"]
[BlackFideId "2093596"]
[WhiteElo "2854"]
[BlackElo "2958"]
[Result "0-1"]
[Round "07"]
[TimeControl "180+1"]
[Date "2022.03.15"]
[WhiteClock "0:00:01"]
[BlackClock "0:01:32"]

1. e4 {[%clk 0:02:54]}  g6 {[%clk 0:02:58]} 2. d4 {[%clk 0:02:53]}  Bg7 {[%clk 0:02:58]} 3. Nc3 {[%clk 0:02:53]}  c6 {[%clk 0:02:58]} 4. Nf3 {[%clk 0:02:52]}  d5 {[%clk 0:02:59]} 5. h3 {[%clk 0:02:52]}  dxe4 {[%clk 0:02:59]} 6. Nxe4 {[%clk 0:02:53]}  Nf6 {[%clk 0:03:00]} 7. Nxf6+ {[%clk 0:02:45]}  exf6 {[%clk 0:03:01]} 8. Bd3 {[%clk 0:02:45]}  O-O {[%clk 0:03:01]} 9. O-O {[%clk 0:02:45]}  Nd7 {[%clk 0:03:02]} 10. c3 {[%clk 0:02:44]}  Nb6 {[%clk 0:03:01]} 11. Re1 {[%clk 0:02:45]}  Be6 {[%clk 0:03:01]} 12. a4 {[%clk 0:02:43]}  a5 {[%clk 0:03:00]} 13. Bd2 {[%clk 0:02:41]}  Re8 {[%clk 0:03:00]} 14. Qc2 {[%clk 0:02:40]}  Bd5 {[%clk 0:02:53]} 15. Nh2 {[%clk 0:02:39]}  f5 {[%clk 0:02:51]} 16. Nf1 {[%clk 0:02:37]}  Be6 {[%clk 0:02:42]} 17. Bf4 {[%clk 0:02:35]}  Bf8 {[%clk 0:02:36]} 18. Nd2 {[%clk 0:02:33]}  Nd5 {[%clk 0:02:34]} 19. Bh2 {[%clk 0:02:27]}  Bd6 {[%clk 0:02:31]} 20. Bxd6 {[%clk 0:02:24]}  Qxd6 {[%clk 0:02:32]} 21. Nc4 {[%clk 0:02:24]}  Qc7 {[%clk 0:02:31]} 22. Ne5 {[%clk 0:02:22]}  f6 {[%clk 0:02:29]} 23. Nc4 {[%clk 0:02:18]}  Nf4 {[%clk 0:02:29]} 24. Bf1 {[%clk 0:02:17]}  Bd5 {[%clk 0:02:29]} 25. Ne3 {[%clk 0:02:10]}  Bf7 {[%clk 0:02:28]} 26. Qd2 {[%clk 0:02:06]}  Rad8 {[%clk 0:02:26]} 27. Bc4 {[%clk 0:01:50]}  Ne6 {[%clk 0:02:21]} 28. Nf1 {[%clk 0:01:45]}  Ng5 {[%clk 0:02:18]} 29. Bxf7+ {[%clk 0:01:42]}  Qxf7 {[%clk 0:02:16]} 30. Rxe8+ {[%clk 0:01:40]}  Rxe8 {[%clk 0:02:16]} 31. Re1 {[%clk 0:01:40]}  Ne4 {[%clk 0:02:13]} 32. Qc2 {[%clk 0:01:40]}  Nd6 {[%clk 0:02:10]} 33. Rxe8+ {[%clk 0:01:34]}  Qxe8 {[%clk 0:02:10]} 34. Qd1 {[%clk 0:01:09]}  Qe6 {[%clk 0:02:08]} 35. Nd2 {[%clk 0:01:09]}  Kf7 {[%clk 0:02:08]} 36. b3 {[%clk 0:01:00]}  f4 {[%clk 0:02:07]} 37. Nf3 {[%clk 0:00:59]}  Qe4 {[%clk 0:02:02]} 38. c4 {[%clk 0:00:58]}  Nf5 {[%clk 0:02:01]} 39. Kh2 {[%clk 0:00:55]}  g5 {[%clk 0:01:59]} 40. Qd2 {[%clk 0:00:53]}  h5 {[%clk 0:01:56]} 41. Qxa5 {[%clk 0:00:16]}  g4 {[%clk 0:01:53]} 42. hxg4 {[%clk 0:00:16]}  hxg4 {[%clk 0:01:53]} 43. Qc7+ {[%clk 0:00:10]}  Kg6 {[%clk 0:01:54]} 44. Nd2 {[%clk 0:00:03]}  g3+ {[%clk 0:01:52]} 45. Kh3 {[%clk 0:00:03]}  gxf2 {[%clk 0:01:32]} 46. Nxe4 {[%clk 0:00:01]}  f1=Q {[%clk 0:01:32]} 0-1


[Site "https://www.chess.com"]

[Event "Titled Tuesday Blitz March 15 Late 2022"]
[White "Rabineau, Clement"]
[Black "Olsen, Filip Boe"]
[WhiteFideId "628891"]
[BlackFideId "1440640"]
[WhiteElo "2237"]
[BlackElo "2188"]
[Result "1-0"]
[Round "07"]
[TimeControl "180+1"]
[Date "2022.03.16"]
[WhiteClock "0:00:15"]
[BlackClock "0:00:18"]

1. e4 {[%clk 0:03:00]}  c6 {[%clk 0:02:59]} 2. d4 {[%clk 0:02:56]}  d5 {[%clk 0:03:00]} 3. exd5 {[%clk 0:02:53]}  cxd5 {[%clk 0:03:00]} 4. c4 {[%clk 0:02:53]}  Nf6 {[%clk 0:03:00]} 5. Nc3 {[%clk 0:02:54]}  Nc6 {[%clk 0:02:56]} 6. Nf3 {[%clk 0:02:53]}  Bg4 {[%clk 0:02:52]} 7. cxd5 {[%clk 0:02:53]}  Nxd5 {[%clk 0:02:52]} 8. Qb3 {[%clk 0:02:52]}  Bxf3 {[%clk 0:02:53]} 9. gxf3 {[%clk 0:02:50]}  e6 {[%clk 0:02:50]} 10. Qxb7 {[%clk 0:02:49]}  Nxd4 {[%clk 0:02:51]} 11. Bb5+ {[%clk 0:02:47]}  Nxb5 {[%clk 0:02:51]} 12. Qxb5+ {[%clk 0:02:48]}  Qd7 {[%clk 0:02:48]} 13. Nxd5 {[%clk 0:02:48]}  exd5 {[%clk 0:02:46]} 14. Qxd7+ {[%clk 0:02:49]}  Kxd7 {[%clk 0:02:46]} 15. Be3 {[%clk 0:02:49]}  Bb4+ {[%clk 0:02:43]} 16. Ke2 {[%clk 0:02:49]}  Ke6 {[%clk 0:02:38]} 17. h3 {[%clk 0:02:39]}  Ba5 {[%clk 0:02:35]} 18. a3 {[%clk 0:02:35]}  Bb6 {[%clk 0:02:34]} 19. b4 {[%clk 0:02:29]}  Rhc8 {[%clk 0:02:33]} 20. Rhc1 {[%clk 0:02:26]}  d4 {[%clk 0:02:22]} 21. Rxc8 {[%clk 0:02:08]}  Rxc8 {[%clk 0:02:21]} 22. Rc1 {[%clk 0:02:08]}  Rxc1 {[%clk 0:02:04]} 23. Bxc1 {[%clk 0:02:09]}  Kd5 {[%clk 0:02:04]} 24. Kd3 {[%clk 0:02:07]}  f6 {[%clk 0:01:59]} 25. Bb2 {[%clk 0:02:02]}  a6 {[%clk 0:01:59]} 26. Ba1 {[%clk 0:01:59]}  h5 {[%clk 0:01:56]} 27. Bb2 {[%clk 0:01:35]}  g5 {[%clk 0:01:56]} 28. Bc1 {[%clk 0:01:17]}  Bc7 {[%clk 0:01:54]} 29. Bb2 {[%clk 0:01:04]}  Be5 {[%clk 0:01:53]} 30. f4 {[%clk 0:00:59]}  gxf4 {[%clk 0:01:49]} 31. f3 {[%clk 0:00:59]}  f5 {[%clk 0:01:44]} 32. Ba1 {[%clk 0:00:55]}  Bf6 {[%clk 0:01:14]} 33. Bb2 {[%clk 0:00:54]}  Be5 {[%clk 0:01:01]} 34. Bc1 {[%clk 0:00:51]}  Bc7 {[%clk 0:00:55]} 35. Bd2 {[%clk 0:00:49]}  Be5 {[%clk 0:00:51]} 36. Be1 {[%clk 0:00:49]}  Kc6 {[%clk 0:00:52]} 37. Kc4 {[%clk 0:00:47]}  d3 {[%clk 0:00:46]} 38. a4 {[%clk 0:00:36]}  Bd6 {[%clk 0:00:26]} 39. Bd2 {[%clk 0:00:35]}  Bc7 {[%clk 0:00:22]} 40. Kxd3 {[%clk 0:00:25]}  Kd5 {[%clk 0:00:22]} 41. Bc1 {[%clk 0:00:16]}  Bd6 {[%clk 0:00:22]} 42. b5 {[%clk 0:00:16]}  axb5 {[%clk 0:00:23]} 43. axb5 {[%clk 0:00:16]}  Kc5 {[%clk 0:00:23]} 44. Ba3+ {[%clk 0:00:16]}  Kd5 {[%clk 0:00:16]} 45. Bxd6 {[%clk 0:00:15]}  Kxd6 {[%clk 0:00:17]} 46. Kd4 {[%clk 0:00:14]}  Kc7 {[%clk 0:00:15]} 47. Ke5 {[%clk 0:00:14]}  Kb6 {[%clk 0:00:16]} 48. Kxf4 {[%clk 0:00:15]}  Kxb5 {[%clk 0:00:17]} 49. Kxf5 {[%clk 0:00:15]}  Kc6 {[%clk 0:00:18]} 50. Ke6 {[%clk 0:00:15]} 1-0


[Site "https://www.chess.com"]

[Event "Titled Tuesday Blitz March 15 Late 2022"]
[White "Risteski, Emil"]
[Black "Bryakin, Mikhail"]
[WhiteFideId "15005267"]
[BlackFideId "4165314"]
[WhiteElo "2070"]
[BlackElo "2417"]
[Result "0-1"]
[Round "07"]
[TimeControl "180+1"]
[Date "2022.03.15"]
[WhiteClock "0:00:15"]
[BlackClock "0:00:58"]

1. e4 {[%clk 0:02:23]}  e6 {[%clk 0:02:52]} 2. d3 {[%clk 0:02:19]}  d5 {[%clk 0:02:52]} 3. Nd2 {[%clk 0:02:17]}  c5 {[%clk 0:02:52]} 4. Ngf3 {[%clk 0:02:16]}  Nc6 {[%clk 0:02:52]} 5. g3 {[%clk 0:02:17]}  Nge7 {[%clk 0:02:52]} 6. Bg2 {[%clk 0:02:17]}  g6 {[%clk 0:02:53]} 7. O-O {[%clk 0:02:17]}  Bg7 {[%clk 0:02:54]} 8. Re1 {[%clk 0:02:17]}  O-O {[%clk 0:02:54]} 9. c3 {[%clk 0:02:18]}  d4 {[%clk 0:02:54]} 10. c4 {[%clk 0:02:17]}  e5 {[%clk 0:02:53]} 11. a3 {[%clk 0:02:12]}  a6 {[%clk 0:02:54]} 12. Rb1 {[%clk 0:02:12]}  b5 {[%clk 0:02:53]} 13. b4 {[%clk 0:02:11]}  cxb4 {[%clk 0:02:53]} 14. axb4 {[%clk 0:02:11]}  f6 {[%clk 0:02:49]} 15. c5 {[%clk 0:02:09]}  Be6 {[%clk 0:02:48]} 16. Nb3 {[%clk 0:02:06]}  a5 {[%clk 0:02:45]} 17. bxa5 {[%clk 0:02:05]}  Nxa5 {[%clk 0:02:46]} 18. Nxa5 {[%clk 0:02:05]}  Qxa5 {[%clk 0:02:46]} 19. Bd2 {[%clk 0:02:04]}  Qc7 {[%clk 0:02:43]} 20. Rxb5 {[%clk 0:02:02]}  Rfb8 {[%clk 0:02:43]} 21. Rxb8+ {[%clk 0:01:59]}  Rxb8 {[%clk 0:02:44]} 22. Qc2 {[%clk 0:01:58]}  Bb3 {[%clk 0:02:39]} 23. Qc1 {[%clk 0:01:58]}  Nc6 {[%clk 0:02:37]} 24. Bh3 {[%clk 0:01:50]}  Bf8 {[%clk 0:02:37]} 25. Qa3 {[%clk 0:01:44]}  Bf7 {[%clk 0:02:33]} 26. Bf1 {[%clk 0:01:27]}  Rb5 {[%clk 0:02:33]} 27. Rc1 {[%clk 0:01:25]}  Qb7 {[%clk 0:02:34]} 28. Ne1 {[%clk 0:01:13]}  Rb2 {[%clk 0:02:29]} 29. Rc2 {[%clk 0:01:00]}  Rb3 {[%clk 0:02:21]} 30. Qc1 {[%clk 0:00:55]}  Rb1 {[%clk 0:02:19]} 31. Qa3 {[%clk 0:00:54]}  Qb5 {[%clk 0:02:14]} 32. Qa8 {[%clk 0:00:50]}  g5 {[%clk 0:02:00]} 33. Bh3 {[%clk 0:00:46]}  Qb7 {[%clk 0:01:56]} 34. Qxb7 {[%clk 0:00:45]}  Rxb7 {[%clk 0:01:57]} 35. Bc8 {[%clk 0:00:44]}  Rc7 {[%clk 0:01:57]} 36. Ba6 {[%clk 0:00:42]}  Na7 {[%clk 0:01:49]} 37. Bb4 {[%clk 0:00:41]}  Nc6 {[%clk 0:01:50]} 38. Bd2 {[%clk 0:00:39]}  Nb8 {[%clk 0:01:50]} 39. Bc4 {[%clk 0:00:36]}  Rxc5 {[%clk 0:01:45]} 40. Bxf7+ {[%clk 0:00:36]}  Kxf7 {[%clk 0:01:46]} 41. Rxc5 {[%clk 0:00:36]}  Bxc5 {[%clk 0:01:47]} 42. Kf1 {[%clk 0:00:37]}  g4 {[%clk 0:01:47]} 43. Ke2 {[%clk 0:00:37]}  h5 {[%clk 0:01:48]} 44. f3 {[%clk 0:00:36]}  Kg6 {[%clk 0:01:47]} 45. Kf2 {[%clk 0:00:37]}  Na6 {[%clk 0:01:44]} 46. Kg2 {[%clk 0:00:37]}  Bd6 {[%clk 0:01:42]} 47. h3 {[%clk 0:00:37]}  gxh3+ {[%clk 0:01:40]} 48. Kxh3 {[%clk 0:00:37]}  Nc5 {[%clk 0:01:40]} 49. f4 {[%clk 0:00:29]}  Nb3 {[%clk 0:01:38]} 50. f5+ {[%clk 0:00:29]}  Kf7 {[%clk 0:01:37]} 51. Nf3 {[%clk 0:00:28]}  Nc5 {[%clk 0:01:32]} 52. Ne1 {[%clk 0:00:28]}  Bc7 {[%clk 0:01:28]} 53. Kh4 {[%clk 0:00:26]}  Nb3 {[%clk 0:01:28]} 54. Bb4 {[%clk 0:00:25]}  Nc1 {[%clk 0:01:16]} 55. Kxh5 {[%clk 0:00:23]}  Ne2 {[%clk 0:01:16]} 56. Kg4 {[%clk 0:00:21]}  Bd8 {[%clk 0:01:17]} 57. Kf3 {[%clk 0:00:21]}  Nc1 {[%clk 0:01:17]} 58. Kf2 {[%clk 0:00:20]}  Kg7 {[%clk 0:01:12]} 59. Kf3 {[%clk 0:00:20]}  Nb3 {[%clk 0:01:11]} 60. Ke2 {[%clk 0:00:21]}  Ba5 {[%clk 0:01:06]} 61. Bxa5 {[%clk 0:00:20]}  Nxa5 {[%clk 0:01:07]} 62. Nc2 {[%clk 0:00:20]}  Kh6 {[%clk 0:01:06]} 63. Nb4 {[%clk 0:00:20]}  Kg5 {[%clk 0:01:05]} 64. Nd5 {[%clk 0:00:20]}  Nb3 {[%clk 0:01:06]} 65. Ne7 {[%clk 0:00:20]}  Kh6 {[%clk 0:01:05]} 66. Ng8+ {[%clk 0:00:20]}  Kg5 {[%clk 0:01:06]} 67. Ne7 {[%clk 0:00:20]}  Nc5 {[%clk 0:01:04]} 68. Nd5 {[%clk 0:00:20]}  Na4 {[%clk 0:01:03]} 69. Kd2 {[%clk 0:00:20]}  Nc5 {[%clk 0:01:02]} 70. Kc2 {[%clk 0:00:20]}  Nd7 {[%clk 0:01:01]} 71. Kb3 {[%clk 0:00:20]}  Kg4 {[%clk 0:01:02]} 72. Kc4 {[%clk 0:00:19]}  Kxg3 {[%clk 0:01:03]} 73. Kb5 {[%clk 0:00:19]}  Kf3 {[%clk 0:01:00]} 74. Kc6 {[%clk 0:00:20]}  Nb8+ {[%clk 0:01:00]} 75. Kb7 {[%clk 0:00:20]}  Nd7 {[%clk 0:01:00]} 76. Kc6 {[%clk 0:00:19]}  Nb8+ {[%clk 0:01:00]} 77. Kd6 {[%clk 0:00:19]}  Ke2 {[%clk 0:00:58]} 78. Nxf6 {[%clk 0:00:19]}  Kxd3 {[%clk 0:00:58]} 79. Nd7 {[%clk 0:00:19]}  Nxd7 {[%clk 0:00:57]} 80. Kxd7 {[%clk 0:00:20]}  Kxe4 {[%clk 0:00:58]} 81. f6 {[%clk 0:00:21]}  d3 {[%clk 0:00:58]} 82. f7 {[%clk 0:00:21]}  d2 {[%clk 0:00:59]} 83. f8=Q {[%clk 0:00:22]}  d1=Q+ {[%clk 0:01:00]} 84. Ke8 {[%clk 0:00:21]}  Qa4+ {[%clk 0:00:58]} 85. Kf7 {[%clk 0:00:18]}  Qd7+ {[%clk 0:00:58]} 86. Kg6 {[%clk 0:00:17]}  Qg4+ {[%clk 0:00:58]} 87. Kh7 {[%clk 0:00:14]}  Qf5+ {[%clk 0:00:58]} 88. Kh6 {[%clk 0:00:14]}  Qxf8+ {[%clk 0:00:58]} 89. Kh5 {[%clk 0:00:15]} 0-1


[Site "https://www.chess.com"]

[Event "Titled Tuesday Blitz March 15 Late 2022"]
[White "Sanchez Alvares, Kelvin Antonio"]
[Black "Kosteniuk, Alexandra"]
[WhiteFideId "3906680"]
[BlackFideId "4128125"]
[WhiteElo "2193"]
[BlackElo "2469"]
[Result "0-1"]
[Round "07"]
[TimeControl "180+1"]
[Date "2022.03.15"]
[WhiteClock "0:00:02"]
[BlackClock "0:00:17"]

1. e4 {[%clk 0:02:54]}  c6 {[%clk 0:02:56]} 2. d4 {[%clk 0:02:54]}  d5 {[%clk 0:02:55]} 3. e5 {[%clk 0:02:54]}  c5 {[%clk 0:02:55]} 4. dxc5 {[%clk 0:02:54]}  e6 {[%clk 0:02:56]} 5. Be3 {[%clk 0:02:52]}  Nc6 {[%clk 0:02:53]} 6. Bb5 {[%clk 0:02:51]}  Bd7 {[%clk 0:02:45]} 7. Bxc6 {[%clk 0:02:51]}  Bxc6 {[%clk 0:02:45]} 8. Bd4 {[%clk 0:02:51]}  Ne7 {[%clk 0:02:37]} 9. Nf3 {[%clk 0:02:47]}  Nf5 {[%clk 0:02:35]} 10. c3 {[%clk 0:02:47]}  Bb5 {[%clk 0:02:34]} 11. a4 {[%clk 0:02:45]}  Ba6 {[%clk 0:02:33]} 12. b4 {[%clk 0:02:43]}  Bc4 {[%clk 0:02:33]} 13. Na3 {[%clk 0:02:40]}  Be7 {[%clk 0:02:18]} 14. Nxc4 {[%clk 0:02:36]}  dxc4 {[%clk 0:02:19]} 15. O-O {[%clk 0:02:36]}  O-O {[%clk 0:02:19]} 16. Qe2 {[%clk 0:02:25]}  Qd5 {[%clk 0:02:19]} 17. a5 {[%clk 0:02:20]}  f6 {[%clk 0:02:14]} 18. Rfe1 {[%clk 0:02:16]}  Rae8 {[%clk 0:02:12]} 19. a6 {[%clk 0:02:09]}  Nxd4 {[%clk 0:02:06]} 20. Nxd4 {[%clk 0:02:04]}  Bd8 {[%clk 0:01:57]} 21. axb7 {[%clk 0:01:57]}  Qxb7 {[%clk 0:01:56]} 22. Qxc4 {[%clk 0:01:56]}  fxe5 {[%clk 0:01:50]} 23. Rxe5 {[%clk 0:01:49]}  Qf7 {[%clk 0:01:50]} 24. Nf3 {[%clk 0:01:41]}  Bc7 {[%clk 0:01:49]} 25. Re4 {[%clk 0:01:41]}  Qg6 {[%clk 0:01:44]} 26. Rae1 {[%clk 0:01:22]}  Rf6 {[%clk 0:01:25]} 27. Rg4 {[%clk 0:01:08]}  Qh5 {[%clk 0:01:23]} 28. Qe4 {[%clk 0:01:02]}  Ref8 {[%clk 0:01:17]} 29. h3 {[%clk 0:01:01]}  h6 {[%clk 0:01:13]} 30. Re3 {[%clk 0:00:54]}  Qf7 {[%clk 0:01:11]} 31. Ne5 {[%clk 0:00:49]}  Qe8 {[%clk 0:01:06]} 32. f4 {[%clk 0:00:44]}  Qa4 {[%clk 0:01:01]} 33. c6 {[%clk 0:00:37]}  Qd1+ {[%clk 0:00:58]} 34. Re1 {[%clk 0:00:34]}  Qd2 {[%clk 0:00:57]} 35. Re3 {[%clk 0:00:25]}  Bb6 {[%clk 0:00:55]} 36. Nc4 {[%clk 0:00:20]}  Bxe3+ {[%clk 0:00:50]} 37. Qxe3 {[%clk 0:00:19]}  Qxe3+ {[%clk 0:00:44]} 38. Nxe3 {[%clk 0:00:19]}  e5 {[%clk 0:00:26]} 39. fxe5 {[%clk 0:00:18]}  Rxc6 {[%clk 0:00:26]} 40. c4 {[%clk 0:00:18]}  Re6 {[%clk 0:00:25]} 41. Re4 {[%clk 0:00:16]}  Rfe8 {[%clk 0:00:25]} 42. Ng4 {[%clk 0:00:08]}  h5 {[%clk 0:00:26]} 43. Ne3 {[%clk 0:00:06]}  Rxe5 {[%clk 0:00:26]} 44. Rxe5 {[%clk 0:00:06]}  Rxe5 {[%clk 0:00:27]} 45. Kf2 {[%clk 0:00:07]}  Kf7 {[%clk 0:00:27]} 46. Ke2 {[%clk 0:00:07]}  Ke6 {[%clk 0:00:26]} 47. Kd3 {[%clk 0:00:08]}  Rg5 {[%clk 0:00:26]} 48. g4 {[%clk 0:00:06]}  hxg4 {[%clk 0:00:25]} 49. hxg4 {[%clk 0:00:07]}  g6 {[%clk 0:00:24]} 50. Kd4 {[%clk 0:00:07]}  Kd6 {[%clk 0:00:24]} 51. b5 {[%clk 0:00:05]}  Rc5 {[%clk 0:00:21]} 52. Nd5 {[%clk 0:00:05]}  Rc8 {[%clk 0:00:21]} 53. Nf4 {[%clk 0:00:04]}  g5 {[%clk 0:00:20]} 54. Nd3 {[%clk 0:00:04]}  Rf8 {[%clk 0:00:19]} 55. c5+ {[%clk 0:00:05]}  Ke6 {[%clk 0:00:19]} 56. Ke4 {[%clk 0:00:03]}  Rb8 {[%clk 0:00:18]} 57. c6 {[%clk 0:00:02]}  Rxb5 {[%clk 0:00:17]} 58. c7 {[%clk 0:00:02]}  Kd7 {[%clk 0:00:17]} 59. Ne5+ {[%clk 0:00:02]}  Kxc7 {[%clk 0:00:17]} 60. Nf3 {[%clk 0:00:02]}  a5 {[%clk 0:00:17]} 0-1


[Site "https://www.chess.com"]